bitfinex/quotes_SOLUSD_20260203
["timestamp","ask_amount","ask_price","bid_price","bid_amount"]
[1770115557535,4.76577211,102.9,102.86,9.72193689]
[1770115558150,1.85774027,102.9,102.87,9.72098908]
[1770115558349,14.68313847,102.91,102.86,27.21265313]
[1770115558545,2.05774027,102.91,102.88,2.90803184]
[1770115558848,2.05774027,102.91,102.88,9.71959734]
[1770115559041,1.85774027,102.9,102.88,0.03487332]
[1770115559441,1.85774027,102.9,102.87,0.03487332]
[1770115559640,4.76577211,102.9,102.87,0.03487332]
[1770115560050,4.76577211,102.9,102.86,36.75642691]
[1770115560051,1.85774027,102.89,102.86,36.75642691]
[1770115561029,4.76577211,102.9,102.87,0.03512958]
[1770115561254,1.85774027,102.9,102.87,0.03512958]
[1770115561448,2.05774027,102.91,102.87,2.94316142]
[1770115561758,2.05774027,102.91,102.88,0.03512958]
[1770115563263,11.77498447,102.91,102.88,0.03512958]
[1770115563960,1.85774027,102.9,102.87,9.75587366]
[1770115564263,1.85774027,102.9,102.87,9.72012938]
[1770115564561,1.85774027,102.9,102.87,0.03574428]
[1770115564861,4.76577211,102.9,102.87,0.03574428]
[1770115565156,4.76577211,102.9,102.87,9.75671184]
[1770115565962,1.85774027,102.9,102.87,9.75671184]
[1770115566258,11.57601337,102.9,102.87,9.75671184]
[1770115566558,1.85774027,102.89,102.86,36.75756792]
[1770115567256,11.57601337,102.9,102.87,0.0363668]
[1770115567463,14.48404521,102.9,102.87,0.0363668]
[1770115567759,1.85774027,102.89,102.86,36.75777304]
[1770115568063,1.85774027,102.89,102.86,36.72140624]
[1770115568248,11.57601337,102.9,102.87,0.03656955]
[1770115568450,1.85774027,102.9,102.87,0.03656955]
[1770115568752,11.77548871,102.91,102.88,0.03656955]
[1770115569856,0.2,102.91,102.89,0.03676998]
[1770115570257,1.85774027,102.9,102.87,36.757427]
[1770115570560,11.77498421,102.91,102.88,0.03696811]
[1770115572459,2.05774027,102.91,102.88,0.03696811]
[1770115574170,0.2,102.91,102.89,0.03773811]
[1770115574774,2.05774027,102.91,102.89,0.03773811]
[1770115575451,2.05774027,102.91,102.88,9.75721311]
[1770115577745,0.2,102.91,102.89,0.03829271]
[1770115577951,0.16157768,102.91,102.88,36.92747535]
[1770115579447,0.16157768,102.91,102.89,2.90803184]
[1770115579762,0.16157768,102.91,102.9,9.71817298]
[1770115580076,0.16157768,102.91,102.88,54.20818736]
[1770115580573,0.16157768,102.91,102.89,9.71861997]
[1770115582268,2.07695143,102.94,102.9,2.90803184]
[1770115584177,2.07695143,102.94,102.91,9.71722864]
[1770115585858,0.2,102.94,102.92,2.90803184]
[1770115586371,0.2,102.94,102.92,9.71581303]
[1770115589179,0.2,102.94,102.92,12.62384487]
[1770115589676,1.87695143,102.96,102.92,36.9145561]
[1770115590265,1.87695143,102.97,102.93,2.90803184]
[1770115590582,1.87695143,102.97,102.94,9.71439673]
[1770115591388,4.78498327,102.97,102.94,9.71439673]
[1770115592276,1.87695143,102.97,102.94,9.71439673]
[1770115592479,2.07695143,102.98,102.94,36.9084204]
[1770115592685,2.07695143,102.98,102.94,63.9084204]
[1770115593585,4.98498327,102.98,102.94,61.00038856]
[1770115598587,1.87695143,102.97,102.94,61.00038856]
[1770115598770,4.78498327,102.96,102.94,36.71439673]
[1770115599086,4.78498327,102.95,102.92,26.98]
[1770115599488,2.90803184,102.95,102.92,26.98]
[1770115599688,4.78498327,102.95,102.92,26.98]
[1770115599892,1.87695143,102.97,102.92,26.98]
[1770115600083,4.78498327,102.96,102.92,26.98]
[1770115600385,2.90803184,102.95,102.92,26.98]
[1770115600590,4.78498327,102.95,102.92,26.98]
[1770115600886,2.90803184,102.95,102.92,26.98]
[1770115602396,2.90803184,102.95,102.93,9.71534052]
[1770115602890,4.78498327,102.95,102.93,9.71534052]
[1770115603274,1.87695143,102.95,102.93,9.71534052]
[1770115603487,4.78498327,102.96,102.93,9.71534052]
[1770115604287,4.78498327,102.96,102.93,34.00369182]
[1770115604486,1.87695143,102.96,102.93,60.98369182]
[1770115604683,4.7806908,102.96,102.93,60.98369182]
[1770115604888,2.90373937,102.95,102.93,60.98369182]
[1770115605274,1.87695143,102.96,102.93,60.98369182]
[1770115605474,4.7806908,102.96,102.93,60.98369182]
[1770115609301,1.87695143,102.96,102.93,34.00369182]
[1770115609506,4.7806908,102.97,102.94,26.98]
[1770115610095,4.7806908,102.97,102.95,9.71345313]
[1770115611003,2.07695143,102.98,102.95,9.71345313]
[1770115611175,4.9806908,102.98,102.95,9.71345313]
[1770115611496,1.87695143,102.96,102.95,9.71345313]
[1770115611697,4.7806908,102.97,102.95,9.71345313]
[1770115611899,4.7806908,102.96,102.94,26.98]
[1770115612194,4.7806908,102.96,102.94,36.69431783]
[1770115612700,4.7806908,102.96,102.94,9.71431783]
[1770115613297,4.7806908,102.95,102.92,26.98]
[1770115613596,2.90373937,102.94,102.92,36.69561898]
[1770115613800,4.7806908,102.95,102.93,9.71534052]
[1770115618096,2.90373937,102.95,102.93,9.71534052]
[1770115619201,4.7806908,102.96,102.93,9.71534052]
[1770115620403,2.90373937,102.95,102.93,9.71534052]
[1770115620607,4.7806908,102.97,102.93,34.00369182]
[1770115620908,4.7806908,102.97,102.93,60.98369182]
[1770115623186,1.87695143,102.97,102.93,60.98369182]
[1770115623403,4.7806908,102.97,102.93,60.98369182]
[1770115623606,4.7806908,102.96,102.93,60.98369182]
[1770115623807,4.7806908,102.95,102.93,36.69534052]
[1770115624887,4.7806908,102.95,102.88,38.88003687]
[1770115624888,1.87695143,102.93,102.9,24.29407235]
[1770115625191,2.90373937,102.92,102.87,82.04075584]
[1770115625506,2.90373937,102.92,102.87,104.74548499]
[1770115625707,2.90373937,102.92,102.87,109.02075584]
[1770115625907,2.90373937,102.92,102.88,82.62052876]
[1770115626111,1.87695143,102.93,102.88,82.62052876]
[1770115626804,4.7806908,102.91,102.88,34.02021772]
[1770115626994,2.90373937,102.9,102.88,34.02021772]
[1770115627193,2.90373937,102.9,102.86,34.02683257]
[1770115627589,2.90373937,102.88,102.86,34.02683257]
[1770115628908,2.90373937,102.88,102.84,34.03345001]
[1770115629405,1.87695143,102.89,102.84,34.03345001]
[1770115629605,4.7806908,102.89,102.84,34.03345001]
[1770115629806,2.90373937,102.9,102.84,85.55640369]
[1770115630013,4.7806908,102.9,102.84,82.65266432]
[1770115630393,2.90373937,102.89,102.84,82.65266432]
[1770115630592,4.7806908,102.9,102.84,82.65266432]
[1770115631713,2.90373937,102.9,102.84,82.65266432]
[1770115631903,2.90373937,102.86,102.84,34.03345001]
[1770115632799,1.87695143,102.87,102.84,34.03345001]
[1770115632999,4.7806908,102.87,102.84,34.03345001]
[1770115633204,4.7806908,102.87,102.82,0.1]
[1770115635209,4.7806908,102.89,102.83,2.90373937]
[1770115635909,4.7806908,102.89,102.83,29.90373937]
[1770115637417,4.7806908,102.89,102.84,34.03345001]
[1770115639899,1.87695143,102.89,102.84,36.93718938]
[1770115640314,1.87695143,102.89,102.84,85.55640369]
[1770115641013,34.00263982,102.94,102.87,1.74198888]
[1770115641219,2.90373937,102.92,102.87,1.74198888]
[1770115642096,2.90373937,102.92,102.88,9.7200622]
[1770115642300,2.90373937,102.92,102.88,11.46205108]
[1770115642708,2.90373937,102.91,102.88,9.7200622]
[1770115642905,2.90373937,102.9,102.88,9.7200622]
[1770115643108,1.87388416,102.9,102.88,9.7200622]
[1770115645424,1.87388416,102.89,102.88,9.7200622]
[1770115645632,1.87388416,102.88,102.87,9.72047475]
[1770115646316,2.90373937,102.89,102.87,9.72047475]
[1770115646505,4.77762353,102.89,102.87,9.72047475]
[1770115646827,1.87388416,102.89,102.87,9.72047475]
[1770115652828,1.87388416,102.89,102.87,1.74198888]
[1770115655026,9.71669535,102.92,102.88,11.46205108]
[1770115655231,2.90373937,102.92,102.88,11.46205108]
[1770115655629,12.61907989,102.93,102.89,1.74198888]
[1770115655926,2.90373937,102.93,102.89,1.74198888]
[1770115656131,2.90373937,102.94,102.89,1.74198888]
[1770115657033,2.90373937,102.94,102.9,11.46016186]
[1770115657034,1.87388416,102.93,102.9,11.46016186]
[1770115657516,1.87388416,102.92,102.89,35.7563757]
[1770115657715,4.77762353,102.92,102.89,35.7563757]
[1770115660134,1.87388416,102.91,102.89,11.46059328]
[1770115660727,1.87388416,102.91,102.88,11.46153996]
[1770115661122,1.87388416,102.91,102.89,9.71897634]
[1770115661323,1.87388416,102.91,102.89,11.46096522]
[1770115662230,1.87388416,102.92,102.9,1.74198888]
[1770115662533,1.87388416,102.93,102.9,1.74198888]
[1770115663535,1.87388416,102.93,102.9,11.45997072]
[1770115663917,1.87388416,102.91,102.89,9.71897336]
[1770115664437,1.87388416,102.91,102.89,11.46096224]
[1770115666238,1.87388416,102.92,102.89,11.46096224]
[1770115671047,1.7254727,102.91,102.88,11.50882365]
[1770115671225,12.62233857,102.92,102.86,29.90601688]
[1770115671226,1.7254727,102.92,102.89,11.50810093]
[1770115672321,1.72660423,102.91,102.89,11.50810093]
[1770115673342,1.72660423,102.9,102.88,9.71947443]
[1770115673524,1.72660423,102.9,102.88,11.48058436]
[1770115673846,1.72660423,102.91,102.89,11.48022743]
[1770115676141,1.72660423,102.92,102.89,11.48022743]
[1770115676350,1.72660423,102.92,102.9,1.76110993]
[1770115677031,1.72660423,102.93,102.9,1.76110993]
[1770115678948,1.72660423,102.93,102.9,11.47899435]
[1770115680169,1.72660423,102.92,102.9,11.47899435]
[1770115680953,4.63262111,102.92,102.89,11.47995883]
[1770115681339,1.72660423,102.91,102.88,11.48041654]
[1770115681539,1.72660423,102.91,102.88,9.71930661]
[1770115681735,1.72660423,102.9,102.88,9.71930661]
[1770115681935,1.72660423,102.9,102.88,11.48041654]
[1770115682234,1.72660423,102.9,102.87,9.72061665]
[1770115682440,1.72660423,102.9,102.85,24.30507357]
[1770115682441,1.72660423,102.88,102.85,26.0661835]
[1770115682738,1.72660423,102.88,102.86,11.48252014]
[1770115684556,1.72660423,102.88,102.86,1.76110993]
[1770115685450,1.72660423,102.88,102.86,11.48301357]
[1770115686352,11.44580566,102.89,102.86,11.48301357]
[1770115686538,4.63262111,102.89,102.86,11.48301357]
[1770115686742,1.72660423,102.89,102.87,1.76110993]
[1770115687056,1.72660423,102.9,102.87,1.76110993]
[1770115687454,1.72660423,102.91,102.89,11.48022743]
[1770115687757,1.72660423,102.92,102.9,1.76110993]
[1770115687952,1.72660423,102.92,102.89,11.48022743]
[1770115688148,1.72660423,102.91,102.89,9.7191175]
[1770115688656,1.72660423,102.91,102.89,11.48022743]
[1770115688959,1.72660423,102.89,102.86,1.76110993]
[1770115689262,1.72660423,102.88,102.85,35.79050451]
[1770115689466,1.72660423,102.88,102.85,11.48345894]
[1770115689874,1.72660423,102.87,102.84,11.48450301]
[1770115690946,1.72660423,102.87,102.84,9.72339308]
[1770115691153,14.3527876,102.88,102.85,1.76110993]
[1770115692262,1.72660423,102.87,102.84,9.72339308]
[1770115692443,1.72660423,102.87,102.84,11.48450301]
[1770115693662,1.72660423,102.87,102.85,9.72286141]
[1770115694163,1.72660423,102.87,102.85,11.48397134]
[1770115694352,14.35226,102.89,102.86,1.76110993]
[1770115694562,1.72660423,102.88,102.85,11.48397134]
[1770115695361,4.63262111,102.89,102.86,1.76110993]
[1770115695662,1.72660423,102.89,102.86,1.76110993]
[1770115696673,1.72660423,102.89,102.86,11.48298236]
[1770115698367,4.63262111,102.89,102.86,11.48298236]
[1770115698869,1.72660423,102.88,102.86,1.76110993]
[1770115699550,1.72660423,102.88,102.86,11.4829611]
[1770115704273,9.71926964,102.89,102.86,11.4829611]
[1770115704274,1.83680156,102.89,102.86,11.4829611]
[1770115704581,4.74281844,102.91,102.87,1.86465051]
[1770115704754,1.83680156,102.91,102.87,1.86465051]
[1770115704954,1.83680156,102.9,102.87,1.86465051]
[1770115705159,4.74281844,102.9,102.87,1.86465051]
[1770115705787,4.74281844,102.9,102.87,11.58551659]
[1770115706158,1.83680156,102.9,102.87,11.58551659]
[1770115706680,11.55444542,102.91,102.88,1.86465051]
[1770115706867,1.83680156,102.9,102.88,1.86465051]
[1770115707173,1.83680156,102.9,102.87,11.58551659]
[1770115711177,1.83680156,102.9,102.88,1.86465051]
[1770115711984,1.83680156,102.9,102.87,9.72086608]
[1770115712281,1.83680156,102.9,102.88,1.86465051]
[1770115713881,1.83680156,102.91,102.88,1.86465051]
[1770115714882,1.83680156,102.91,102.88,11.58443975]
[1770115715266,1.83680156,102.91,102.89,1.86465051]
[1770115715892,1.83680156,102.91,102.88,11.58443975]
[1770115717485,1.83680156,102.91,102.89,1.86465051]
[1770115719970,1.83680156,102.91,102.89,11.5835685]
[1770115720289,1.83680156,102.9,102.86,26.16952591]
[1770115720475,1.83680156,102.9,102.87,11.58530324]
[1770115721077,1.83680156,102.9,102.88,1.86465051]
[1770115723596,1.83680156,102.9,102.88,11.58409301]
[1770115729100,1.83680156,102.9,102.88,9.7194425]
[1770115730606,1.83680156,102.9,102.88,11.49762705]
[1770115733095,1.74086729,102.91,102.88,11.51946252]
[1770115733609,1.74086729,102.91,102.89,1.80002002]
[1770115733795,1.74086729,102.91,102.88,11.51946252]
[1770115734203,1.74086729,102.92,102.89,1.80002002]
[1770115734795,1.74086729,102.92,102.89,11.51828786]
[1770115737310,1.74086729,102.91,102.88,35.81964104]
[1770115737608,1.74086729,102.9,102.88,9.7194655]
[1770115740710,1.74086729,102.9,102.87,11.52043898]
[1770115740914,1.74086729,102.89,102.87,9.72041896]
[1770115741097,1.74086729,102.9,102.88,1.80002002]
[1770115741303,11.45858703,102.91,102.88,1.80002002]
[1770115741506,1.74086729,102.9,102.88,1.80002002]
[1770115742324,24.28771438,102.94,102.89,1.80002002]
[1770115742497,9.71534052,102.93,102.9,1.80002002]
[1770115742822,9.71462919,102.94,102.91,1.80002002]
[1770115744420,11.45549648,102.94,102.91,1.80002002]
[1770115749310,1.74086729,102.93,102.91,1.80002002]
[1770115749917,11.45448264,102.95,102.92,1.80002002]
[1770115750208,1.74086729,102.94,102.91,14.42405348]
[1770115750420,1.74086729,102.94,102.91,11.51723281]
[1770115753222,1.74086729,102.93,102.9,11.51761497]
[1770115754533,1.74086729,102.93,102.89,11.51881637]
[1770115754534,1.74086729,102.92,102.89,11.51881637]
[1770115755237,1.74086729,102.91,102.88,1.80002002]
[1770115756218,1.74086729,102.91,102.88,11.51955108]
[1770115764440,1.74086729,102.91,102.89,1.81640154]
[1770115765118,1.77566383,102.89,102.86,1.81640154]
[1770115765322,4.6824845,102.89,102.86,11.53809198]
[1770115766538,4.6824845,102.88,102.85,11.53877998]
[1770115769230,1.77566383,102.88,102.85,11.53877998]
[1770115771948,1.77566383,102.87,102.85,11.53877998]
[1770115772650,14.40258622,102.88,102.85,11.53877998]
[1770115773446,1.77566383,102.88,102.85,11.53877998]
[1770115776032,4.6824845,102.88,102.85,11.53877998]
[1770115776747,14.40293409,102.88,102.85,1.81640154]
[1770115776952,1.77566383,102.87,102.84,11.5397159]
[1770115777648,4.6824845,102.87,102.84,11.5397159]
[1770115777830,1.77566383,102.86,102.84,1.81640154]
[1770115778029,1.77566383,102.86,102.83,11.5406797]
[1770115778254,1.77566383,102.86,102.84,1.81640154]
[1770115781242,12.62839364,102.87,102.84,1.81640154]
[1770115781243,14.40405747,102.87,102.84,1.81640154]
[1770115782852,11.4972368,102.87,102.84,1.81640154]
[1770115783339,11.4972368,102.87,102.84,11.54022909]
[1770115783858,1.77566383,102.89,102.85,1.81640154]
[1770115784162,1.77566383,102.9,102.86,1.81640154]
[1770115784540,1.77566383,102.9,102.87,1.81640154]
[1770115784838,1.77566383,102.89,102.86,11.53741706]
[1770115786457,1.77566383,102.89,102.86,9.72101552]
[1770115786657,1.77566383,102.9,102.87,11.53733011]
[1770115787057,11.49396599,102.9,102.87,11.53733011]
[1770115787265,11.49396599,102.9,102.87,1.81640154]
[1770115787467,1.77566383,102.89,102.87,1.81640154]
[1770115788866,1.77566383,102.9,102.88,1.81640154]
[1770115790862,9.7175035,102.91,102.88,1.81640154]
[1770115791061,11.51734437,102.91,102.88,1.81640154]
[1770115791268,11.51734437,102.91,102.88,11.53645627]
[1770115791969,1.79984087,102.9,102.88,1.81640154]
[1770115792669,11.546678,102.91,102.88,1.81640154]
[1770115793459,1.8291745,102.91,102.88,11.53595765]
[1770115793650,1.8291745,102.91,102.89,1.84450537]
[1770115795468,9.71574633,102.93,102.9,1.84450537]
[1770115795652,14.45170456,102.94,102.9,1.84450537]
[1770115797077,1.8291745,102.95,102.92,1.84450537]
[1770115797647,2.90745327,102.97,102.93,1.84450537]
[1770115797648,11.54111244,102.97,102.93,1.84450537]
[1770115798053,1.8291745,102.96,102.93,1.84450537]
[1770115799077,1.8291745,102.96,102.93,11.55966781]
[1770115800288,12.61939121,102.97,102.94,1.84450537]
[1770115800289,1.8291745,102.97,102.94,1.84450537]
[1770115800460,11.7401639,102.98,102.94,1.84450537]
[1770115800660,11.7401639,102.98,102.95,1.84450537]
[1770115801364,0.2,102.98,102.96,1.84450537]
[1770115801572,0.2,102.98,102.96,4.75195864]
[1770115801777,0.2,102.98,102.97,1.84450537]
[1770115801955,0.2,103.0,102.97,1.84450537]
[1770115802156,0.2,103.0,102.98,1.84450537]
[1770115802356,0.2,103.0,102.99,1.84450537]
[1770115802956,0.2,103.0,102.98,11.55465958]
[1770115803156,0.2,103.0,102.98,1.84450537]
[1770115804384,11.73800546,103.0,102.97,1.84450537]
[1770115804979,2.0291745,103.0,102.98,1.84450537]
[1770115805669,0.2,103.0,102.98,1.84450537]
[1770115805980,0.2,103.0,102.98,11.55511107]
[1770115807979,2.0291745,103.0,102.97,11.55555694]
[1770115808987,2.0291745,103.0,102.98,1.84450537]
[1770115809367,0.2,103.0,102.98,1.84450537]
[1770115810186,2.0291745,103.0,102.95,24.28209382]
[1770115810388,2.0291745,103.0,102.94,2.90745327]
[1770115810389,1.8291745,102.98,102.94,2.90745327]
[1770115810683,1.8291745,102.99,102.96,12.61983961]
[1770115810883,9.39666526,103.0,102.97,1.84450537]
[1770115812070,12.8157893,103.01,102.97,11.55597068]
[1770115812281,9.90833603,103.01,102.98,1.84450537]
[1770115812785,11.73751053,103.01,102.98,1.84450537]
[1770115814185,14.6449638,103.01,102.98,1.84450537]
[1770115814685,11.73751053,103.01,102.98,1.84450537]
[1770115815468,1.8291745,103.0,102.97,11.55597068]
[1770115815786,11.73751053,103.01,102.98,1.84450537]
[1770115816579,1.8291745,102.98,102.95,11.55747431]
[1770115816773,2.90745327,102.99,102.96,1.84450537]
[1770115816774,1.8291745,102.99,102.96,1.84450537]
[1770115817078,1.8291745,102.99,102.96,11.55689845]
[1770115819586,11.5387195,103.0,102.97,1.84450537]
[1770115822393,14.44617277,103.0,102.97,1.84450537]
[1770115823679,11.53798705,103.0,102.97,11.55519313]
[1770115824076,11.67972267,103.01,102.98,1.68287143]
[1770115828491,11.67972267,103.01,102.98,11.39341703]
[1770115828691,27.37593558,103.02,102.98,11.39341703]
[1770115828692,0.2,103.02,103.0,1.68287143]
[1770115830395,11.67840841,103.02,102.99,1.68287143]
[1770115831272,1.77135675,103.01,102.98,11.39341703]
[1770115831487,14.58586168,103.02,102.99,1.68287143]
[1770115833002,11.67840841,103.02,102.99,1.68287143]
[1770115839002,11.67840841,103.02,102.99,11.39253832]
[1770115839213,1.97135675,103.02,102.99,11.39253832]
[1770115839381,11.67832574,103.02,102.99,11.39253832]
[1770115839581,11.67832574,103.02,103.0,1.68287143]
[1770115841209,9.90696899,103.02,103.0,1.68287143]
[1770115841399,0.2,103.02,103.0,1.68287143]
[1770115842501,11.67823291,103.02,102.99,11.39253832]
[1770115842680,11.67823291,103.02,102.99,1.68287143]
[1770115846681,1.77135675,103.01,102.98,11.39296278]
[1770115846886,4.67881002,103.01,102.98,11.39296278]
[1770115847411,14.38677789,103.01,102.98,11.39296278]
[1770115847806,11.47932462,103.01,102.98,1.68287143]
[1770115849596,4.67279364,102.99,102.96,1.68287143]
[1770115850304,1.77135675,102.99,102.96,1.68287143]
[1770115850512,4.67279364,102.99,102.96,1.68287143]
[1770115851100,4.71693511,102.97,102.94,23.26358324]
[1770115851405,14.43069752,102.95,102.92,1.70312499]
[1770115851612,4.71693511,102.93,102.9,1.70312499]
[1770115854728,1.81549822,102.93,102.9,1.70312499]
[1770115857212,14.43250536,102.93,102.9,1.70312499]
[1770115859514,4.73950858,102.91,102.88,1.81000553]
[1770115860619,14.456696,102.92,102.89,1.81000553]
[1770115861024,1.83807169,102.91,102.88,11.52998525]
[1770115861226,1.83807169,102.9,102.87,11.53054224]
[1770115861426,1.83807169,102.89,102.86,25.75753342]
[1770115861638,4.73950858,102.89,102.86,2.01000553]
[1770115862312,4.73950858,102.89,102.86,11.73178097]
[1770115862507,11.55726555,102.89,102.86,11.73178097]
[1770115862718,14.45870244,102.89,102.86,11.73178097]
[1770115863633,1.83807169,102.88,102.86,2.01000553]
[1770115864013,14.45870244,102.89,102.86,2.01000553]
[1770115864935,2.90143689,102.88,102.86,2.01000553]
[1770115865141,4.73950858,102.87,102.86,0.2]
[1770115866037,1.83807169,102.86,102.83,1.81000553]
[1770115866222,4.73950858,102.86,102.83,1.81000553]
[1770115866935,11.56016302,102.86,102.83,1.81000553]
[1770115870435,1.83807169,102.88,102.84,1.81000553]
[1770115870733,1.83807169,102.87,102.84,1.81000553]
[1770115871539,11.5594482,102.87,102.84,1.81000553]
[1770115872341,1.83807169,102.85,102.83,1.81000553]
[1770115876936,1.83807169,102.84,102.82,1.91000553]
[1770115877139,1.83807169,102.83,102.82,0.1]
[1770115877326,2.90143689,102.84,102.82,0.1]
[1770115877639,14.46549424,102.82,102.8,0.1]
[1770115877941,14.46535225,102.82,102.8,0.1]
[1770115879544,1.83807169,102.81,102.8,0.1]
[1770115880142,14.46535225,102.82,102.8,0.1]
[1770115880346,2.90143689,102.86,102.81,1.71501354]
[1770115880540,1.83880887,102.85,102.81,1.71501354]
[1770115881344,11.56170629,102.85,102.81,1.71501354]
[1770115881533,1.83880887,102.84,102.81,11.44153024]
[1770115882447,1.83880887,102.88,102.84,1.71501354]
[1770115883439,11.55942686,102.88,102.84,11.43857384]
[1770115883945,11.55942686,102.88,102.84,9.7235603]
[1770115884140,125.97748852,102.92,102.87,1.71501354]
[1770115884141,1.83880887,102.91,102.87,1.71501354]
[1770115884340,1.83880887,102.91,102.88,1.71501354]
[1770115885219,7.98222937,102.92,102.89,1.71501354]
[1770115885425,7.98222937,102.92,102.89,4.61645043]
[1770115885653,7.98222937,102.92,102.89,14.335183]
[1770115886146,7.98222937,102.92,102.89,11.43374611]
[1770115886849,17.6991527,102.92,102.88,11.43503584]
[1770115887747,17.6991527,102.92,102.88,9.7200223]
[1770115887949,17.6991527,102.92,102.89,1.71501354]
[1770115888645,41.98986393,102.92,102.89,1.71501354]
[1770115888827,41.98986393,102.92,102.84,34.19670774]
[1770115888828,1.83880887,102.89,102.84,12.62474442]
[1770115889032,4.74024576,102.89,102.85,1.71501354]
[1770115889238,1.83880887,102.88,102.84,1.71501354]
[1770115889439,4.74024576,102.88,102.84,1.71501354]
[1770115889841,14.46081903,102.88,102.84,11.4387479]
[1770115891148,11.55938214,102.88,102.85,1.71501354]
[1770115891751,11.55938214,102.88,102.84,11.4387479]
[1770115892045,11.55938214,102.88,102.85,1.71501354]
[1770115892259,14.45890536,102.9,102.86,1.71501354]
[1770115893260,14.45890536,102.9,102.86,11.43685971]
[1770115894936,14.45890536,102.9,102.87,1.71501354]
[1770115895247,11.55704201,102.9,102.87,11.43601165]
[1770115895656,14.4584789,102.9,102.87,1.71501354]
[1770115896757,14.4584789,102.9,102.86,9.72149552]
[1770115897055,14.4584789,102.9,102.86,11.43650906]
[1770115897550,11.55704201,102.9,102.87,1.71501354]
[1770115898740,14.4584789,102.9,102.87,1.71501354]
[1770115899231,11.55704201,102.9,102.87,1.71501354]
[1770115901040,11.55705122,102.9,102.87,11.4358068]
[1770115902053,1.83880887,102.9,102.87,11.4358068]
[1770115902238,1.83880887,102.91,102.88,1.71501354]
[1770115902640,6.1434205,102.92,102.88,1.71501354]
[1770115902838,6.1434205,102.92,102.89,1.71501354]
[1770115904064,6.1434205,102.92,102.89,11.43390712]
[1770115904246,20.6000589,102.92,102.89,1.71501354]
[1770115905141,17.69862201,102.92,102.89,1.71501354]
[1770115906769,17.69862201,102.92,102.89,11.43386279]
[1770115907278,17.69862201,102.92,102.9,1.71501354]
[1770115907279,6.1434205,102.92,102.9,1.71501354]
[1770115908556,0.89208089,102.92,102.9,2.90541865]
[1770115908766,1e-08,102.92,102.91,9.71722864]
[1770115910079,1.86443525,102.92,102.89,9.71875818]
[1770115910580,1.86443524,102.9,102.87,9.72019581]
[1770115910879,11.58289374,102.9,102.85,2.90541865]
[1770115911464,1.86443524,102.89,102.84,2.90541865]
[1770115912362,1.86443524,102.89,102.85,9.72246283]
[1770115912780,1.86443524,102.89,102.85,2.90541865]
[1770115913180,1.86443524,102.88,102.84,2.90541865]
[1770115913359,1.86443524,102.88,102.83,2.90541865]
[1770115914271,1.86443524,102.87,102.83,2.90541865]
[1770115914885,1.86443524,102.87,102.84,9.72384286]
[1770115920800,9.72108516,102.87,102.84,9.72384286]
[1770115920963,1.86443524,102.86,102.83,9.72433658]
[1770115922679,11.58642129,102.86,102.83,9.72433658]
[1770115923593,1.86443524,102.84,102.82,9.72571609]
[1770115924899,1.86443524,102.84,102.81,9.72668028]
[1770115925395,1.86443524,102.85,102.81,36.94879964]
[1770115928098,1.86443524,102.87,102.81,36.94879964]
[1770115928275,1.86443524,102.87,102.83,2.90541865]
[1770115928875,1.86443524,102.87,102.84,9.72384286]
[1770115929076,12.62502046,102.89,102.84,12.62926151]
[1770115929077,1.86443524,102.88,102.84,12.62926151]
[1770115929997,1.86443524,102.87,102.84,9.72384286]
[1770115930178,1.86443524,102.86,102.83,9.72421863]
[1770115931304,1.86443524,102.86,102.82,34.03838772]
[1770115932004,1.86443524,102.86,102.82,36.94380637]
[1770115934407,11.5861428,102.87,102.82,36.94380637]
[1770115934699,1.86443524,102.86,102.82,36.94380637]
[1770115935104,1.86443524,102.85,102.82,36.94380637]
[1770115935295,1.86443524,102.85,102.82,34.03838772]
[1770115937087,1.86443524,102.85,102.82,36.94380637]
[1770115937605,1.86443524,102.86,102.82,36.94380637]
[1770115938511,1.86443524,102.86,102.82,34.03838772]
[1770115938810,1.86443524,102.85,102.82,34.03838772]
[1770115949718,1.86443524,102.86,102.82,36.94380637]
[1770115949916,1.86443524,102.85,102.82,34.03838772]
[1770115951324,1.86443524,102.85,102.81,34.04338099]
[1770115952821,1.86443524,102.85,102.81,36.94879964]
[1770115953628,1.86443524,102.85,102.8,34.14669259]
[1770115953806,1.86443524,102.85,102.8,37.05211124]
[1770115954425,11.58763794,102.85,102.8,34.14669259]
[1770115954631,1.86443524,102.84,102.8,37.05211124]
[1770115956426,1.86443524,102.84,102.8,34.14669259]
[1770115956612,1.86443524,102.84,102.8,37.05211124]
[1770115959655,1.86443524,102.85,102.81,2.90541865]
[1770115959929,1.86443524,102.86,102.81,2.90541865]
[1770115960132,1.86443524,102.86,102.8,34.14669259]
[1770115960314,1.86443524,102.85,102.8,37.05211124]
[1770115960932,1.86443524,102.85,102.81,2.90541865]
[1770115963037,1.86443524,102.85,102.82,9.72573429]
[1770115967241,1.86443524,102.84,102.81,34.04137795]
[1770115967741,1.86443524,102.84,102.8,37.05211124]
[1770115968442,1.86443524,102.84,102.8,37.05712876]
[1770115969152,1.86443524,102.84,102.8,34.14669259]
[1770115969340,1.86443524,102.84,102.8,37.05712876]
[1770115970635,1.86443524,102.83,102.8,37.05712876]